Workbook

Sheet Лист1
A1: № | B1: ФИО | C1: игры | D1: победы | E1: процент побед
A2: 1 | B2: Торгашин Кирилл (Академия Александра Островского в Химках) | C2: 16 | D2: 16 | E2: =IF(C2>9,(D2/C2)+0.0001%,0) -> 1.000001 | F2: *
A3: 2 | B3: Граник Ариэль (г.Дзержинск) | C3: 12 | D3: 12 | E3: =IF(C3>9,(D3/C3)+0.0001%,0) -> 1.000001
A4: 3 | B4: Симонова Варвара (Академия Александра Островского в Туле) | C4: 12 | D4: 12 | E4: =IF(C4>9,(D4/C4)+0.0001%,0) -> 1.000001
A5: 4 | B5: Малинин Николай ("Спартак", г. Москва) | C5: 11 | D5: 11 | E5: =IF(C5>9,(D5/C5)+0.0001%,0) -> 1.000001
A6: 5 | B6: Пронина Милана (г.Нижний Новгород) | C6: 12 | D6: 11 | E6: =IF(C6>9,(D6/C6)+0.0001%,0) -> 0.9166676667
A7: 6 | B7: Молчанов Георгий (Академия Александра Островского в Химках) | C7: 10 | D7: 9 | E7: =IF(C7>9,(D7/C7)+0.0001%,0) -> 0.900001
A8: 7 | B8: Сергина Александра (г. Н-Новгород) | C8: 36 | D8: 31 | E8: =IF(C8>9,(D8/C8)+0.0001%,0) -> 0.8611121111
A9: 8 | B9: Горюнов Лев ("Спартак", г. Москва) | C9: 14 | D9: 12 | E9: =IF(C9>9,(D9/C9)+0.0001%,0) -> 0.8571438571
A10: 9 | B10: Белоева Арина (г.Дзержинск) | C10: 38 | D10: 32 | E10: =IF(C10>9,(D10/C10)+0.0001%,0) -> 0.8421062632
A11: 10 | B11: Петушкова Анфиса ("Спартак", г. Москва) | C11: 19 | D11: 16 | E11: =IF(C11>9,(D11/C11)+0.0001%,0) -> 0.8421062632
A12: 11 | B12: Мелтонян Луиза (МТА, г. Москва) | C12: 11 | D12: 9 | E12: =IF(C12>9,(D12/C12)+0.0001%,0) -> 0.8181828182
A13: 12 | B13: Назаревская София (Московская теннисная академия, г. Москва) | C13: 11 | D13: 9 | E13: =IF(C13>9,(D13/C13)+0.0001%,0) -> 0.8181828182
A14: 13 | B14: Соловьева Елизавета ("Спартак", г. Москва) | C14: 11 | D14: 9 | E14: =IF(C14>9,(D14/C14)+0.0001%,0) -> 0.8181828182
A15: 14 | B15: Казумофф Виктория ("Спартак", г. Москва) | C15: 16 | D15: 13 | E15: =IF(C15>9,(D15/C15)+0.0001%,0) -> 0.812501
A16: 15 | B16: Иванкова Виктория (Tennis School One, г. Нижний Новгород) | C16: 41 | D16: 33 | E16: =IF(C16>9,(D16/C16)+0.0001%,0) -> 0.8048790488
A17: 16 | B17: Сурганов Лев г. Москва | C17: 10 | D17: 8 | E17: =IF(C17>9,(D17/C17)+0.0001%,0) -> 0.800001
A18: 17 | B18: Якунина Алиса (ТК "Major", г. Москва) | C18: 10 | D18: 8 | E18: =IF(C18>9,(D18/C18)+0.0001%,0) -> 0.800001
A19: 18 | B19: Кузнецова Мария (г.Бор) | C19: 24 | D19: 19 | E19: =IF(C19>9,(D19/C19)+0.0001%,0) -> 0.7916676667
A20: 19 | B20: Недря Тимофей (Академия Александра Островского в Химках) | C20: 19 | D20: 15 | E20: =IF(C20>9,(D20/C20)+0.0001%,0) -> 0.7894746842
A21: 20 | B21: Задохина Полина (ТК "Жемчужина", г. Москва) | C21: 16 | D21: 12 | E21: =IF(C21>9,(D21/C21)+0.0001%,0) -> 0.750001
A22: 21 | B22: Суховерков Глеб (ТК "Жемчужина", г. Москва) | C22: 28 | D22: 21 | E22: =IF(C22>9,(D22/C22)+0.0001%,0) -> 0.750001
A23: 22 | B23: Хегай Елизавета (360 Academy, г. Москва) | C23: 26 | D23: 19 | E23: =IF(C23>9,(D23/C23)+0.0001%,0) -> 0.7307702308
A24: 23 | B24: Чиркова Стефания (г. Н-Новгород) | C24: 37 | D24: 27 | E24: =IF(C24>9,(D24/C24)+0.0001%,0) -> 0.7297307297
A25: 24 | B25: Рязанова Ярослава ("Будь Здоров", г. Москва) | C25: 16 | D25: 10 | E25: =IF(C25>9,(D25/C25)+0.0001%,0) -> 0.625001
A26: 25 | B26: Юрецкая София ("Спартак", г. Москва) | C26: 24 | D26: 14 | E26: =IF(C26>9,(D26/C26)+0.0001%,0) -> 0.5833343333
A27: 26 | B27: Крупнов Андрей (г.Нижний Новгород) | C27: 19 | D27: 11 | E27: =IF(C27>9,(D27/C27)+0.0001%,0) -> 0.5789483684
A28: 27 | B28: Диева Яна (г.Нижний Новгород) | C28: 28 | D28: 16 | E28: =IF(C28>9,(D28/C28)+0.0001%,0) -> 0.5714295714
A29: 28 | B29: Ивичук Мирон (г. Н-Новгород) | C29: 28 | D29: 16 | E29: =IF(C29>9,(D29/C29)+0.0001%,0) -> 0.5714295714
A30: 29 | B30: Джанполадов Мирон (ТЦ "Долгопрудный) | C30: 13 | D30: 7 | E30: =IF(C30>9,(D30/C30)+0.0001%,0) -> 0.5384625385
A31: 30 | B31: Семейкин Никита (Школа Тенниса Сергея Купцова, г. Москва) | C31: 15 | D31: 8 | E31: =IF(C31>9,(D31/C31)+0.0001%,0) -> 0.5333343333
A32: 31 | B32: Черношкур Григорий (г. Зеленоград) | C32: 15 | D32: 8 | E32: =IF(C32>9,(D32/C32)+0.0001%,0) -> 0.5333343333
A33: 32 | B33: Космачев Федор (г.Нижний Новгорд) | C33: 19 | D33: 10 | E33: =IF(C33>9,(D33/C33)+0.0001%,0) -> 0.5263167895
A34: 33 | B34: Рябова Ева (г. Н-Новгород) | C34: 27 | D34: 14 | E34: =IF(C34>9,(D34/C34)+0.0001%,0) -> 0.5185195185
A35: 34 | B35: Джуплин Александр (Академия Александра Островского в Химках) | C35: 14 | D35: 7 | E35: =IF(C35>9,(D35/C35)+0.0001%,0) -> 0.500001
A36: 35 | B36: Журавлева Ольга (ТК "С.С.С.Р.-теннис" г. Балашиха) | C36: 14 | D36: 7 | E36: =IF(C36>9,(D36/C36)+0.0001%,0) -> 0.500001
A37: 36 | B37: Кравченко Владислав (Академия Александра Островского в Химках) | C37: 29 | D37: 14 | E37: =IF(C37>9,(D37/C37)+0.0001%,0) -> 0.4827596207
A38: 37 | B38: Устинова Александра (теннисная академия TOP SPOT г.Химки) | C38: 25 | D38: 12 | E38: =IF(C38>9,(D38/C38)+0.0001%,0) -> 0.480001
A39: 38 | B39: Лебедев Макар (г.Нижний Новгород) | C39: 19 | D39: 9 | E39: =IF(C39>9,(D39/C39)+0.0001%,0) -> 0.4736852105
A40: 39 | B40: Мальцева Мирослава (Академия Александра Островского в Химках) | C40: 17 | D40: 8 | E40: =IF(C40>9,(D40/C40)+0.0001%,0) -> 0.4705892353
A41: 40 | B41: Симакова Дарья (г. Н-Новгород) | C41: 15 | D41: 7 | E41: =IF(C41>9,(D41/C41)+0.0001%,0) -> 0.4666676667
A42: 41 | B42: Степанов Елисей (ТК "Пироговский", г. Мытищи) | C42: 14 | D42: 6 | E42: =IF(C42>9,(D42/C42)+0.0001%,0) -> 0.4285724286
A43: 42 | B43: Бутаева Камилла ("Лужники", г. Москва) | C43: 19 | D43: 8 | E43: =IF(C43>9,(D43/C43)+0.0001%,0) -> 0.4210536316
A44: 43 | B44: Степанов Артемий (ТК "Пироговский", г. Мытищи) | C44: 10 | D44: 4 | E44: =IF(C44>9,(D44/C44)+0.0001%,0) -> 0.400001
A45: 44 | B45: Пустовалова Виктория (г. Ковров) | C45: 28 | D45: 11 | E45: =IF(C45>9,(D45/C45)+0.0001%,0) -> 0.3928581429
A46: 45 | B46: Мольков Филипп (г. Нижний Новгород) | C46: 27 | D46: 10 | E46: =IF(C46>9,(D46/C46)+0.0001%,0) -> 0.3703713704
A47: 46 | B47: Макарова Маргарита (г.Нижний Новгород) | C47: 11 | D47: 4 | E47: =IF(C47>9,(D47/C47)+0.0001%,0) -> 0.3636373636
A48: 47 | B48: Любимов Дмитрий (г. Н-Новгород) | C48: 15 | D48: 5 | E48: =IF(C48>9,(D48/C48)+0.0001%,0) -> 0.3333343333
A49: 48 | B49: Ястребова Алика (РГУФК, г. Москва) | C49: 12 | D49: 4 | E49: =IF(C49>9,(D49/C49)+0.0001%,0) -> 0.3333343333
A50: 49 | B50: Малышев Егор (г.Нижний Новгород) | C50: 11 | D50: 3 | E50: =IF(C50>9,(D50/C50)+0.0001%,0) -> 0.2727282727
A51: 50 | B51: Рябов Максим (ЦСКА г. Москва) | C51: 11 | D51: 3 | E51: =IF(C51>9,(D51/C51)+0.0001%,0) -> 0.2727282727
A52: 51 | B52: Василат Арина (Школа Тенниса Сергея Купцова, г. Москва) | C52: 15 | D52: 4 | E52: =IF(C52>9,(D52/C52)+0.0001%,0) -> 0.2666676667
A53: 52 | B53: Зайцев Сергей (г. Зеленоград) | C53: 25 | D53: 6 | E53: =IF(C53>9,(D53/C53)+0.0001%,0) -> 0.240001
A54: 53 | B54: Рыжова Таисия (г. Нижний Новгород) | C54: 11 | D54: 2 | E54: =IF(C54>9,(D54/C54)+0.0001%,0) -> 0.1818191818
A55: 54 | B55: Иванов Тимур (г.Ковров) | C55: 12 | D55: 2 | E55: =IF(C55>9,(D55/C55)+0.0001%,0) -> 0.1666676667
A56: 55 | B56: Горбунова Полина (г. Дзержинск) | C56: 19 | D56: 3 | E56: =IF(C56>9,(D56/C56)+0.0001%,0) -> 0.1578957368
A57: 56 | B57: Коноваленко Злата (г. Клин) | C57: 14 | D57: 2 | E57: =IF(C57>9,(D57/C57)+0.0001%,0) -> 0.1428581429
A58: 57 | B58: Карпова Арина (РГУФК, г. Москва) | C58: 17 | D58: 2 | E58: =IF(C58>9,(D58/C58)+0.0001%,0) -> 0.1176480588
A59: 58 | B59: Ломаев Данил (г. Н-Новгород) | C59: 13 | D59: 1 | E59: =IF(C59>9,(D59/C59)+0.0001%,0) -> 0.07692407692
A60: 59 | B60: Зырянова Алиса (г.Нижний Новгород) | C60: 11 | D60: 0 | E60: =IF(C60>9,(D60/C60)+0.0001%,0) -> 1e-06
A61: 60 | B61: Аверьянов Александр (г. Москва) | C61: 2 | D61: 0 | E61: =IF(C61>9,(D61/C61)+0.0001%,0) -> 0
A62: 61 | B62: Аверьянова Любовь (г. Москва) | C62: 2 | D62: 1 | E62: =IF(C62>9,(D62/C62)+0.0001%,0) -> 0
A63: 62 | B63: Адамова Ева (ЦСКА, г. Москва) | C63: 3 | D63: 1 | E63: =IF(C63>9,(D63/C63)+0.0001%,0) -> 0
A64: 63 | B64: Алеев Хасан (г. Пушкино) | C64: 3 | D64: 1 | E64: =IF(C64>9,(D64/C64)+0.0001%,0) -> 0
A65: 64 | B65: Алейников Кирилл (ТК СМЭШ, г. Тула) | C65: 7 | D65: 4 | E65: =IF(C65>9,(D65/C65)+0.0001%,0) -> 0
A66: 65 | B66: Алексеенко Марья (Академия Александра Островского в Химках) | C66: 7 | D66: 3 | E66: =IF(C66>9,(D66/C66)+0.0001%,0) -> 0
A67: 66 | B67: Алёхин Михаил (Школа Тенниса Сергея Купцова, г. Москва) | C67: 3 | D67: 1 | E67: =IF(C67>9,(D67/C67)+0.0001%,0) -> 0
A68: 67 | B68: Андреева Алана (Tennistime, г. Москва) | C68: 2 | D68: 0 | E68: =IF(C68>9,(D68/C68)+0.0001%,0) -> 0
A69: 68 | B69: Апхашева София | C69: 3 | D69: 1 | E69: =IF(C69>9,(D69/C69)+0.0001%,0) -> 0
A70: 69 | B70: Афанасьев Кирилл (Академия J-PRO, г. Москва) | C70: 2 | D70: 0 | E70: =IF(C70>9,(D70/C70)+0.0001%,0) -> 0
A71: 70 | B71: Баграмян Роберт ("Спартак", г. Москва) | C71: 3 | D71: 1 | E71: =IF(C71>9,(D71/C71)+0.0001%,0) -> 0
A72: 71 | B72: Базарнов Игорь (Tennistime, г. Москва) | C72: 2 | D72: 0 | E72: =IF(C72>9,(D72/C72)+0.0001%,0) -> 0
A73: 72 | B73: Балакирева Ника (Терехов) | C73: 3 | D73: 1 | E73: =IF(C73>9,(D73/C73)+0.0001%,0) -> 0
A74: 73 | B74: Балакирева Полина (Терехов) | C74: 5 | D74: 1 | E74: =IF(C74>9,(D74/C74)+0.0001%,0) -> 0
A75: 74 | B75: Баландин Прохор (г. Нижний Новгород) | C75: 8 | D75: 0 | E75: =IF(C75>9,(D75/C75)+0.0001%,0) -> 0
A76: 75 | B76: Безпаленко Агата (Московская теннисная академия, г. Москва) | C76: 5 | D76: 4 | E76: =IF(C76>9,(D76/C76)+0.0001%,0) -> 0
A77: 76 | B77: Бойцов Тигран(г. Москва) | C77: 2 | D77: 0 | E77: =IF(C77>9,(D77/C77)+0.0001%,0) -> 0
A78: 77 | B78: Бойцова Теона (г. Москва) | C78: 2 | D78: 0 | E78: =IF(C78>9,(D78/C78)+0.0001%,0) -> 0
A79: 78 | B79: Борзенкова Мария (г. Нижний Новгород) | C79: 8 | D79: 2 | E79: =IF(C79>9,(D79/C79)+0.0001%,0) -> 0
A80: 79 | B80: Боровкова Вероника (Академия Александра Островского в Химках) | C80: 4 | D80: 0 | E80: =IF(C80>9,(D80/C80)+0.0001%,0) -> 0
A81: 80 | B81: Ботина Дарья (ТК "Пироговский", г. Мытищи) | C81: 3 | D81: 2 | E81: =IF(C81>9,(D81/C81)+0.0001%,0) -> 0
A82: 81 | B82: Бусловская Алиса (г. Обнинск) | C82: 6 | D82: 4 | E82: =IF(C82>9,(D82/C82)+0.0001%,0) -> 0
A83: 82 | B83: Быченков Егор ("Спартак", г. Москва) | C83: 2 | D83: 1 | E83: =IF(C83>9,(D83/C83)+0.0001%,0) -> 0
A84: 83 | B84: Вакатова Есения (ТК СМЭШ, г. Тула) | C84: 3 | D84: 1 | E84: =IF(C84>9,(D84/C84)+0.0001%,0) -> 0
A85: 84 | B85: Ветюгов Федор (Академия Александра Островского в Химках) | C85: 4 | D85: 0 | E85: =IF(C85>9,(D85/C85)+0.0001%,0) -> 0
A86: 85 | B86: Владимиров Филипп (г. Нижний Новгород) | C86: 8 | D86: 0 | E86: =IF(C86>9,(D86/C86)+0.0001%,0) -> 0
A87: 86 | B87: Волочкова София (Академия Александра Островского в Химках) | C87: 2 | D87: 0 | E87: =IF(C87>9,(D87/C87)+0.0001%,0) -> 0
A88: 87 | B88: Гараева Сара (Академия J-PRO, г. Москва) | C88: 4 | D88: 3 | E88: =IF(C88>9,(D88/C88)+0.0001%,0) -> 0
A89: 88 | B89: Глуздаков Михаил (ТЦ РИАТ, г. Иваново) | C89: 5 | D89: 2 | E89: =IF(C89>9,(D89/C89)+0.0001%,0) -> 0
A90: 89 | B90: Говорина Мария (г. Москва) | C90: 2 | D90: 0 | E90: =IF(C90>9,(D90/C90)+0.0001%,0) -> 0
A91: 90 | B91: Гусейнов Мирлан ("Спартак", г. Москва) | C91: 3 | D91: 1 | E91: =IF(C91>9,(D91/C91)+0.0001%,0) -> 0
A92: 91 | B92: Дубровина Мария (г. Дзержинск) | C92: 4 | D92: 0 | E92: =IF(C92>9,(D92/C92)+0.0001%,0) -> 0
A93: 92 | B93: Ефремова Мария (Академия Александра Островского в Химках) | C93: 3 | D93: 1 | E93: =IF(C93>9,(D93/C93)+0.0001%,0) -> 0
A94: 93 | B94: Жигалова Наталья (г. Москва) | C94: 7 | D94: 0 | E94: =IF(C94>9,(D94/C94)+0.0001%,0) -> 0
A95: 94 | B95: Жулина Александра (ТК СМЭШ, г. Тула) | C95: 9 | D95: 5 | E95: =IF(C95>9,(D95/C95)+0.0001%,0) -> 0
A96: 95 | B96: Журавлева Мелания | C96: 4 | D96: 2 | E96: =IF(C96>9,(D96/C96)+0.0001%,0) -> 0
A97: 96 | B97: Зайченко Злата (Академия J-PRO, г. Москва) | C97: 5 | D97: 1 | E97: =IF(C97>9,(D97/C97)+0.0001%,0) -> 0
A98: 97 | B98: Зайченко Кира (Академия J-PRO, г. Москва) | C98: 2 | D98: 0 | E98: =IF(C98>9,(D98/C98)+0.0001%,0) -> 0
A99: 98 | B99: Зейналова Эмилия ("Олимпийская деревня-80", г. Москва) | C99: 5 | D99: 0 | E99: =IF(C99>9,(D99/C99)+0.0001%,0) -> 0
A100: 99 | B100: Зюкова Злата | C100: 2 | D100: 0 | E100: =IF(C100>9,(D100/C100)+0.0001%,0) -> 0
A101: 100 | B101: Иванов Михаил ("Спартак", г. Москва) | C101: 3 | D101: 1 | E101: =IF(C101>9,(D101/C101)+0.0001%,0) -> 0
A102: 101 | B102: Иванова Мария (ЦСКА, Москва) | C102: 6 | D102: 2 | E102: =IF(C102>9,(D102/C102)+0.0001%,0) -> 0
A103: 102 | B103: Игнатов Иван (Tennis And Travel, г. Москва) | C103: 2 | D103: 0 | E103: =IF(C103>9,(D103/C103)+0.0001%,0) -> 0
A104: 103 | B104: Ижин Максим (ТШ "Чемпион", г. Москва) | C104: 2 | D104: 1 | E104: =IF(C104>9,(D104/C104)+0.0001%,0) -> 0
A105: 104 | B105: Инжин Максим (школа тенниса "Чемпион", г. Москва) | C105: 2 | D105: 0 | E105: =IF(C105>9,(D105/C105)+0.0001%,0) -> 0
A106: 105 | B106: Карсанов Аксо (Северная Осетия) | C106: 6 | D106: 5 | E106: =IF(C106>9,(D106/C106)+0.0001%,0) -> 0
A107: 106 | B107: Касьянов Гордей (г. Н-Новгород) | C107: 6 | D107: 1 | E107: =IF(C107>9,(D107/C107)+0.0001%,0) -> 0
A108: 107 | B108: Клокова Анна (Tennis And Travel, г. Москва) | C108: 3 | D108: 1 | E108: =IF(C108>9,(D108/C108)+0.0001%,0) -> 0
A109: 108 | B109: Козин Макар (Kozin Tennis Team) | C109: 3 | D109: 1 | E109: =IF(C109>9,(D109/C109)+0.0001%,0) -> 0
A110: 109 | B110: Колесников Одег (Академия Александра Островского в Химках) | C110: 2 | D110: 0 | E110: =IF(C110>9,(D110/C110)+0.0001%,0) -> 0
A111: 110 | B111: Колотырин Данил (г. Нижний Новгород) | C111: 8 | D111: 2 | E111: =IF(C111>9,(D111/C111)+0.0001%,0) -> 0
A112: 111 | B112: Конкин Дмитрий (г. Москва) | C112: 6 | D112: 2 | E112: =IF(C112>9,(D112/C112)+0.0001%,0) -> 0
A113: 112 | B113: Коробенков Глеб ("Спартак", г. Москва) | C113: 8 | D113: 5 | E113: =IF(C113>9,(D113/C113)+0.0001%,0) -> 0
A114: 113 | B114: Коробенкова Алиса ("Спартак", г. Москва) | C114: 3 | D114: 1 | E114: =IF(C114>9,(D114/C114)+0.0001%,0) -> 0
A115: 114 | B115: Короленко Виктория (г. Нижний Новгород) | C115: 8 | D115: 4 | E115: =IF(C115>9,(D115/C115)+0.0001%,0) -> 0
A116: 115 | B116: Котов Виктор (г.Нижний Новгород) | C116: 8 | D116: 0 | E116: =IF(C116>9,(D116/C116)+0.0001%,0) -> 0
A117: 116 | B117: Кудинов Андрей (J-PRO, г. Москва) | C117: 5 | D117: 4 | E117: =IF(C117>9,(D117/C117)+0.0001%,0) -> 0
A118: 117 | B118: Кудря Андрей (Школа Тенниса Сергея Купцова, г. Москва) | C118: 8 | D118: 5 | E118: =IF(C118>9,(D118/C118)+0.0001%,0) -> 0
A119: 118 | B119: Куклина Ева (Академия Александра Островского в Химках) | C119: 9 | D119: 4 | E119: =IF(C119>9,(D119/C119)+0.0001%,0) -> 0
A120: 119 | B120: Лебев Макар (г. Нижний Новгород) | C120: 4 | D120: 1 | E120: =IF(C120>9,(D120/C120)+0.0001%,0) -> 0
A121: 120 | B121: Лебедев Борис (Академия тенниса "Гринвич", г. Екатеринбург) | C121: 4 | D121: 2 | E121: =IF(C121>9,(D121/C121)+0.0001%,0) -> 0
A122: 121 | B122: Левкина Виктория (г. Обнинск) | C122: 6 | D122: 3 | E122: =IF(C122>9,(D122/C122)+0.0001%,0) -> 0
A123: 122 | B123: Луценко Анна (ЦСКА г. Москва) | C123: 8 | D123: 5 | E123: =IF(C123>9,(D123/C123)+0.0001%,0) -> 0
A124: 123 | B124: Мамонтов Владислав (Академия Александра Островского в Химках) | C124: 3 | D124: 1 | E124: =IF(C124>9,(D124/C124)+0.0001%,0) -> 0
A125: 124 | B125: Мареева Ксения (РГУФК, г. Москва) | C125: 5 | D125: 2 | E125: =IF(C125>9,(D125/C125)+0.0001%,0) -> 0
A126: 125 | B126: Марфинский Стефан (Валенсия, Испания) | C126: 4 | D126: 0 | E126: =IF(C126>9,(D126/C126)+0.0001%,0) -> 0
A127: 126 | B127: Меджлумова Оливия ("Спартак", г. Москва) | C127: 4 | D127: 3 | E127: =IF(C127>9,(D127/C127)+0.0001%,0) -> 0
A128: 127 | B128: Мормыль Захар (Академия J-PRO, г. Москва) | C128: 3 | D128: 0 | E128: =IF(C128>9,(D128/C128)+0.0001%,0) -> 0
A129: 128 | B129: Мурадова Этель (г. Москва) | C129: 4 | D129: 3 | E129: =IF(C129>9,(D129/C129)+0.0001%,0) -> 0
A130: 129 | B130: Назаревская Дарья (Московская теннисная академия, г. Москва) | C130: 7 | D130: 4 | E130: =IF(C130>9,(D130/C130)+0.0001%,0) -> 0
A131: 130 | B131: Назарова Виктория (Академия Александра Островского в Химках) | C131: 4 | D131: 2 | E131: =IF(C131>9,(D131/C131)+0.0001%,0) -> 0
A132: 131 | B132: Олюнин Роман (г. Обнинск) | C132: 2 | D132: 0 | E132: =IF(C132>9,(D132/C132)+0.0001%,0) -> 0
A133: 132 | B133: Острова Вероника (ТК Skorik, г. Москва) | C133: 5 | D133: 3 | E133: =IF(C133>9,(D133/C133)+0.0001%,0) -> 0
A134: 133 | B134: Павлов Владислав (ТК "Жемчужина", г. Москва) | C134: 5 | D134: 4 | E134: =IF(C134>9,(D134/C134)+0.0001%,0) -> 0
A135: 134 | B135: Панкратов Леонид (г. Дзержинск) | C135: 4 | D135: 1 | E135: =IF(C135>9,(D135/C135)+0.0001%,0) -> 0
A136: 135 | B136: Папахин Давид (Валенсия, Испания) | C136: 2 | D136: 0 | E136: =IF(C136>9,(D136/C136)+0.0001%,0) -> 0
A137: 136 | B137: Повалишникова Елизавета (г. Москва) | C137: 7 | D137: 4 | E137: =IF(C137>9,(D137/C137)+0.0001%,0) -> 0
A138: 137 | B138: Пономарев Александр ("Спартак", г. Москва) | C138: 4 | D138: 3 | E138: =IF(C138>9,(D138/C138)+0.0001%,0) -> 0
A139: 138 | B139: Почевалов Тимофей (г. Н-Новгород) | C139: 3 | D139: 0 | E139: =IF(C139>9,(D139/C139)+0.0001%,0) -> 0
A140: 139 | B140: Почнчуев Петр (ЦСКА, г. Москва) | C140: 2 | D140: 0 | E140: =IF(C140>9,(D140/C140)+0.0001%,0) -> 0
A141: 140 | B141: Прищепа Кирилл (г. Нижний Новгород) | C141: 5 | D141: 3 | E141: =IF(C141>9,(D141/C141)+0.0001%,0) -> 0
A142: 141 | B142: Рачковская Юлия (ТК "Хотьково", Московская область) | C142: 3 | D142: 1 | E142: =IF(C142>9,(D142/C142)+0.0001%,0) -> 0
A143: 142 | B143: Рудович Алиса (ТК "Жемчужина", г. Москва) | C143: 5 | D143: 1 | E143: =IF(C143>9,(D143/C143)+0.0001%,0) -> 0
A144: 143 | B144: Салехова Каролина ("Спартак", г. Москва) | C144: 2 | D144: 0 | E144: =IF(C144>9,(D144/C144)+0.0001%,0) -> 0
A145: 144 | B145: Саркисян София (Академия Александра Островского в Химках) | C145: 2 | D145: 0 | E145: =IF(C145>9,(D145/C145)+0.0001%,0) -> 0
A146: 145 | B146: Сатывалдыева Анастасия (Школа Тенниса Сергея Купцова, г. Москва) | C146: 3 | D146: 1 | E146: =IF(C146>9,(D146/C146)+0.0001%,0) -> 0
A147: 146 | B147: Свинцова Валерия (г. Киров) | C147: 8 | D147: 3 | E147: =IF(C147>9,(D147/C147)+0.0001%,0) -> 0
A148: 147 | B148: Семененков Леон (г. Иваново) | C148: 5 | D148: 3 | E148: =IF(C148>9,(D148/C148)+0.0001%,0) -> 0
A149: 148 | B149: Семенова Дарья (Академия Александра Островского в Химках) | C149: 3 | D149: 0 | E149: =IF(C149>9,(D149/C149)+0.0001%,0) -> 0
A150: 149 | B150: Сергеева Яна | C150: 2 | D150: 0 | E150: =IF(C150>9,(D150/C150)+0.0001%,0) -> 0
A151: 150 | B151: Сидельникова Афина (Московская Академия тенниса, г. Москва) | C151: 8 | D151: 1 | E151: =IF(C151>9,(D151/C151)+0.0001%,0) -> 0
A152: 151 | B152: Сидельникова Ника (Московская Академия тенниса, г. Москва) | C152: 7 | D152: 4 | E152: =IF(C152>9,(D152/C152)+0.0001%,0) -> 0
A153: 152 | B153: Сидоров Виктор (СДЮШ "Белокаменная", г. Москва) | C153: 2 | D153: 0 | E153: =IF(C153>9,(D153/C153)+0.0001%,0) -> 0
A154: 153 | B154: Смирнов Артемий (ТК "Пироговский", Мытищи) | C154: 2 | D154: 0 | E154: =IF(C154>9,(D154/C154)+0.0001%,0) -> 0
A155: 154 | B155: Смирнов Степан (ТК "Жемчужина", г. Москва) | C155: 7 | D155: 3 | E155: =IF(C155>9,(D155/C155)+0.0001%,0) -> 0
A156: 155 | B156: Соловьев Артем (г. Мытищи) | C156: 7 | D156: 3 | E156: =IF(C156>9,(D156/C156)+0.0001%,0) -> 0
A157: 156 | B157: Таланова Ульяна (г. Москва) | C157: 2 | D157: 0 | E157: =IF(C157>9,(D157/C157)+0.0001%,0) -> 0
A158: 157 | B158: Тонких Мила (ЦСКА г. Москва) | C158: 4 | D158: 1 | E158: =IF(C158>9,(D158/C158)+0.0001%,0) -> 0
A159: 158 | B159: Туинчик Варвара (г.Иваново) | C159: 4 | D159: 1 | E159: =IF(C159>9,(D159/C159)+0.0001%,0) -> 0
A160: 159 | B160: Ульянова Милана (г.Иваново) | C160: 4 | D160: 1 | E160: =IF(C160>9,(D160/C160)+0.0001%,0) -> 0
A161: 160 | B161: Фадеева Мария (г. Москва) | C161: 2 | D161: 0 | E161: =IF(C161>9,(D161/C161)+0.0001%,0) -> 0
A162: 161 | B162: Федотова Инга (г. Москва) | C162: 2 | D162: 0 | E162: =IF(C162>9,(D162/C162)+0.0001%,0) -> 0
A163: 162 | B163: Ходарина Анастасия (г. Новогорск) | C163: 3 | D163: 2 | E163: =IF(C163>9,(D163/C163)+0.0001%,0) -> 0
A164: 163 | B164: Хохлов Константин (РГУФК, г. Москва) | C164: 2 | D164: 0 | E164: =IF(C164>9,(D164/C164)+0.0001%,0) -> 0
A165: 164 | B165: Черменская Майя (Академия Александра Островского в Химках) | C165: 2 | D165: 0 | E165: =IF(C165>9,(D165/C165)+0.0001%,0) -> 0
A166: 165 | B166: Чугунова Мирослава (г. Нижний Новгород) | C166: 4 | D166: 0 | E166: =IF(C166>9,(D166/C166)+0.0001%,0) -> 0
A167: 166 | B167: Шепелева Есения (г. Клин) | C167: 2 | D167: 0 | E167: =IF(C167>9,(D167/C167)+0.0001%,0) -> 0
A168: 167 | B168: Шмакова Арсения (г. Киров) | C168: 4 | D168: 1 | E168: =IF(C168>9,(D168/C168)+0.0001%,0) -> 0
A169: 168 | B169: Шперлинг Матвей (г.Арзамас) | C169: 4 | D169: 0 | E169: =IF(C169>9,(D169/C169)+0.0001%,0) -> 0
A170: 169 | B170: Шумилова Александра (ЦСКА г. Москва) | C170: 2 | D170: 0 | E170: =IF(C170>9,(D170/C170)+0.0001%,0) -> 0
A171: 170 | B171: Шуц Григорий (Академия Александра Островского в Химках) | C171: 2 | D171: 0 | E171: =IF(C171>9,(D171/C171)+0.0001%,0) -> 0
A172: 171 | B172: Юдин Даниил | C172: 7 | D172: 4 | E172: =IF(C172>9,(D172/C172)+0.0001%,0) -> 0
A173: * | B173: В рейтинге учитываются результаты игроков, сыгравших не менее 10 матчей
